[Event "Titled Tuesday Blitz April 12 Early 2022"]
[White "Caputcuoglu, Zeki Berke"]
[Black "Yeletsky, Ivan"]
[WhiteFideId "34548610"]
[BlackFideId "24180327"]
[WhiteElo "1368"]
[BlackElo "2319"]
[Result "0-1"]
[Round "06"]
[TimeControl "180+1"]
[Date "2022.04.13"]
[WhiteClock "0:00:10"]
[BlackClock "0:01:01"]

1. e4 {[%clk 0:02:58]}  Nc6 {[%clk 0:02:58]} 2. Nf3 {[%clk 0:02:56]}  d6 {[%clk 0:02:57]} 3. d4 {[%clk 0:02:55]}  Nf6 {[%clk 0:02:57]} 4. Nc3 {[%clk 0:02:53]}  g6 {[%clk 0:02:55]} 5. Be3 {[%clk 0:02:52]}  Ng4 {[%clk 0:02:55]} 6. Bg5 {[%clk 0:02:49]}  f6 {[%clk 0:02:54]} 7. Bh4 {[%clk 0:02:49]}  Bg7 {[%clk 0:02:51]} 8. h3 {[%clk 0:02:47]}  Nh6 {[%clk 0:02:50]} 9. Bc4 {[%clk 0:02:46]}  Nf7 {[%clk 0:02:33]} 10. Qe2 {[%clk 0:02:39]}  e6 {[%clk 0:02:28]} 11. O-O-O {[%clk 0:02:36]}  O-O {[%clk 0:02:26]} 12. e5 {[%clk 0:02:29]}  a6 {[%clk 0:02:16]} 13. Ne4 {[%clk 0:02:20]}  g5 {[%clk 0:02:11]} 14. exf6 {[%clk 0:02:18]}  Bxf6 {[%clk 0:02:11]} 15. Nxf6+ {[%clk 0:02:10]}  Qxf6 {[%clk 0:02:11]} 16. Bg3 {[%clk 0:02:07]}  b5 {[%clk 0:02:05]} 17. Bd3 {[%clk 0:02:01]}  Nb4 {[%clk 0:02:04]} 18. Be4 {[%clk 0:01:38]}  Rb8 {[%clk 0:02:03]} 19. Kb1 {[%clk 0:01:10]}  Bb7 {[%clk 0:02:01]} 20. h4 {[%clk 0:00:29]}  Bxe4 {[%clk 0:01:49]} 21. Qxe4 {[%clk 0:00:30]}  g4 {[%clk 0:01:44]} 22. Qxg4+ {[%clk 0:00:29]}  Kh8 {[%clk 0:01:38]} 23. Ng5 {[%clk 0:00:29]}  Rbe8 {[%clk 0:01:32]} 24. a3 {[%clk 0:00:22]}  Nd5 {[%clk 0:01:28]} 25. Rde1 {[%clk 0:00:21]}  Nh6 {[%clk 0:01:27]} 26. Qe4 {[%clk 0:00:20]}  Nf5 {[%clk 0:01:22]} 27. Nxe6 {[%clk 0:00:19]}  c6 {[%clk 0:01:20]} 28. h5 {[%clk 0:00:12]}  Nc7 {[%clk 0:01:08]} 29. Qxc6 {[%clk 0:00:12]}  Nxe6 {[%clk 0:01:08]} 30. Bxd6 {[%clk 0:00:13]}  Nexd4 {[%clk 0:01:05]} 31. Be5 {[%clk 0:00:11]}  Qxe5 {[%clk 0:01:00]} 32. Rxe5 {[%clk 0:00:10]}  Nxc6 {[%clk 0:01:00]} 33. Rxe8 {[%clk 0:00:10]}  Rxe8 {[%clk 0:01:01]} 0-1


[Site "https://www.chess.com"]

[Event "Titled Tuesday Blitz April 12 Early 2022"]
[White "Caruana, Fabiano"]
[Black "Ahmadzada, Ahmad"]
[WhiteFideId "2020009"]
[BlackFideId "13413007"]
[WhiteElo "2744"]
[BlackElo "2228"]
[Result "1-0"]
[Round "06"]
[TimeControl "180+1"]
[Date "2022.04.12"]
[WhiteClock "0:00:07"]
[BlackClock "0:00:03"]

1. e4 {[%clk 0:03:00]}  d5 {[%clk 0:02:59]} 2. exd5 {[%clk 0:03:00]}  Qxd5 {[%clk 0:02:59]} 3. Nc3 {[%clk 0:03:01]}  Qd8 {[%clk 0:03:00]} 4. d4 {[%clk 0:03:01]}  Nf6 {[%clk 0:03:00]} 5. Nf3 {[%clk 0:03:01]}  Bg4 {[%clk 0:03:00]} 6. h3 {[%clk 0:03:00]}  Bxf3 {[%clk 0:03:00]} 7. Qxf3 {[%clk 0:03:01]}  c6 {[%clk 0:03:01]} 8. Be3 {[%clk 0:03:01]}  e6 {[%clk 0:03:01]} 9. O-O-O {[%clk 0:03:02]}  Nbd7 {[%clk 0:03:00]} 10. Kb1 {[%clk 0:03:02]}  Nd5 {[%clk 0:02:57]} 11. Bd2 {[%clk 0:02:56]}  Bb4 {[%clk 0:02:45]} 12. Ne4 {[%clk 0:02:55]}  Bxd2 {[%clk 0:02:19]} 13. Rxd2 {[%clk 0:02:56]}  N7f6 {[%clk 0:02:16]} 14. Nc5 {[%clk 0:02:45]}  Qb6 {[%clk 0:02:03]} 15. Qb3 {[%clk 0:02:28]}  Qxb3 {[%clk 0:01:53]} 16. axb3 {[%clk 0:02:29]}  O-O-O {[%clk 0:01:51]} 17. g3 {[%clk 0:02:28]}  Nb6 {[%clk 0:01:45]} 18. Bg2 {[%clk 0:02:23]}  e5 {[%clk 0:01:37]} 19. Rhd1 {[%clk 0:02:22]}  Rxd4 {[%clk 0:01:33]} 20. Rxd4 {[%clk 0:02:23]}  exd4 {[%clk 0:01:34]} 21. Rxd4 {[%clk 0:02:24]}  Re8 {[%clk 0:01:30]} 22. Kc1 {[%clk 0:02:21]}  Re2 {[%clk 0:01:23]} 23. Rd2 {[%clk 0:02:20]}  Rxd2 {[%clk 0:01:23]} 24. Kxd2 {[%clk 0:02:21]}  Nbd7 {[%clk 0:01:24]} 25. Nd3 {[%clk 0:02:20]}  Kc7 {[%clk 0:01:24]} 26. f4 {[%clk 0:02:18]}  Kd6 {[%clk 0:01:24]} 27. b4 {[%clk 0:02:15]}  b6 {[%clk 0:01:20]} 28. c4 {[%clk 0:02:12]}  a5 {[%clk 0:01:04]} 29. c5+ {[%clk 0:02:05]}  Kc7 {[%clk 0:00:37]} 30. cxb6+ {[%clk 0:02:04]}  Nxb6 {[%clk 0:00:27]} 31. bxa5 {[%clk 0:02:04]}  Nc4+ {[%clk 0:00:27]} 32. Kc3 {[%clk 0:02:04]}  Nxa5 {[%clk 0:00:27]} 33. Ne5 {[%clk 0:02:03]}  Nh5 {[%clk 0:00:26]} 34. Nxf7 {[%clk 0:01:33]}  Nxg3 {[%clk 0:00:26]} 35. Bf3 {[%clk 0:01:34]}  Nb7 {[%clk 0:00:22]} 36. Ng5 {[%clk 0:01:31]}  Nc5 {[%clk 0:00:17]} 37. b4 {[%clk 0:01:28]}  Na4+ {[%clk 0:00:13]} 38. Kd4 {[%clk 0:01:25]}  Kd6 {[%clk 0:00:11]} 39. Nxh7 {[%clk 0:01:13]}  c5+ {[%clk 0:00:11]} 40. bxc5+ {[%clk 0:01:09]}  Nxc5 {[%clk 0:00:12]} 41. Bg4 {[%clk 0:01:07]}  Ne6+ {[%clk 0:00:06]} 42. Ke3 {[%clk 0:01:06]}  g6 {[%clk 0:00:04]} 43. Nf6 {[%clk 0:00:37]}  Ng7 {[%clk 0:00:03]} 44. Kf3 {[%clk 0:00:23]}  N3f5 {[%clk 0:00:03]} 45. Bxf5 {[%clk 0:00:19]}  Nxf5 {[%clk 0:00:03]} 46. Kg4 {[%clk 0:00:19]}  Ke6 {[%clk 0:00:03]} 47. Kg5 {[%clk 0:00:19]}  Kf7 {[%clk 0:00:03]} 48. Ng4 {[%clk 0:00:18]}  Ne7 {[%clk 0:00:03]} 49. Ne5+ {[%clk 0:00:19]}  Kg7 {[%clk 0:00:03]} 50. h4 {[%clk 0:00:19]}  Kh7 {[%clk 0:00:04]} 51. Nd3 {[%clk 0:00:15]}  Kg7 {[%clk 0:00:04]} 52. Nc5 {[%clk 0:00:15]}  Kh7 {[%clk 0:00:02]} 53. Ne6 {[%clk 0:00:16]}  Kg8 {[%clk 0:00:02]} 54. Kf6 {[%clk 0:00:15]}  Nd5+ {[%clk 0:00:02]} 55. Kxg6 {[%clk 0:00:15]}  Ne7+ {[%clk 0:00:02]} 56. Kg5 {[%clk 0:00:15]}  Kf7 {[%clk 0:00:03]} 57. f5 {[%clk 0:00:16]}  Nd5 {[%clk 0:00:04]} 58. h5 {[%clk 0:00:15]}  Nf6 {[%clk 0:00:04]} 59. h6 {[%clk 0:00:08]}  Nh7+ {[%clk 0:00:04]} 60. Kf4 {[%clk 0:00:08]}  Kf6 {[%clk 0:00:04]} 61. Nc5 {[%clk 0:00:08]}  Nf8 {[%clk 0:00:03]} 62. Ne4+ {[%clk 0:00:09]}  Kf7 {[%clk 0:00:04]} 63. Kg4 {[%clk 0:00:07]}  Nh7 {[%clk 0:00:03]} 64. Ng5+ {[%clk 0:00:07]} 1-0


[Site "https://www.chess.com"]

[Event "Titled Tuesday Blitz April 12 Early 2022"]
[White "Chernomordik, Pavel"]
[Black "Mangialardo, Tiago Carvalho"]
[WhiteFideId "2804530"]
[BlackFideId "2130718"]
[WhiteElo "2220"]
[BlackElo "2065"]
[Result "1-0"]
[Round "06"]
[TimeControl "180+1"]
[Date "2022.04.13"]
[WhiteClock "0:02:08"]
[BlackClock "0:00:04"]

1. e4 {[%clk 0:03:00]}  Nf6 {[%clk 0:03:00]} 2. Nc3 {[%clk 0:03:00]}  d5 {[%clk 0:03:00]} 3. e5 {[%clk 0:03:00]}  Nfd7 {[%clk 0:03:00]} 4. f4 {[%clk 0:02:59]}  e6 {[%clk 0:02:46]} 5. Nf3 {[%clk 0:02:58]}  c5 {[%clk 0:02:45]} 6. g3 {[%clk 0:02:58]}  Nc6 {[%clk 0:02:44]} 7. Bg2 {[%clk 0:02:57]}  f6 {[%clk 0:02:43]} 8. Qe2 {[%clk 0:02:52]}  Nd4 {[%clk 0:02:06]} 9. Nxd4 {[%clk 0:02:44]}  cxd4 {[%clk 0:02:07]} 10. exf6 {[%clk 0:02:38]}  Nxf6 {[%clk 0:02:02]} 11. Nb5 {[%clk 0:02:35]}  Qb6 {[%clk 0:01:56]} 12. c3 {[%clk 0:02:32]}  dxc3 {[%clk 0:00:38]} 13. dxc3 {[%clk 0:02:29]}  Bc5 {[%clk 0:00:20]} 14. b4 {[%clk 0:02:27]}  Bd7 {[%clk 0:00:20]} 15. a4 {[%clk 0:02:23]}  Bxb5 {[%clk 0:00:17]} 16. axb5 {[%clk 0:02:21]}  Be7 {[%clk 0:00:15]} 17. Be3 {[%clk 0:02:19]}  Qc7 {[%clk 0:00:15]} 18. Bd4 {[%clk 0:02:15]}  Qd7 {[%clk 0:00:12]} 19. O-O {[%clk 0:02:10]}  O-O {[%clk 0:00:12]} 20. Rfe1 {[%clk 0:02:09]}  Kh8 {[%clk 0:00:04]} 21. Qxe6 {[%clk 0:02:08]} 1-0


[Site "https://www.chess.com"]

[Event "Titled Tuesday Blitz April 12 Early 2022"]
[White "Czerw, Dawid"]
[Black "Broca Jimenez, Fernando"]
[WhiteFideId "1145746"]
[BlackFideId "5104742"]
[WhiteElo "2125"]
[BlackElo "2062"]
[Result "1-0"]
[Round "06"]
[TimeControl "180+1"]
[Date "2022.04.13"]
[WhiteClock "0:01:45"]
[BlackClock "0:00:39"]

1. d4 {[%clk 0:03:00]}  Nf6 {[%clk 0:02:59]} 2. c4 {[%clk 0:03:01]}  e6 {[%clk 0:02:59]} 3. Nc3 {[%clk 0:03:01]}  Bb4 {[%clk 0:02:59]} 4. f3 {[%clk 0:03:01]}  d5 {[%clk 0:02:57]} 5. a3 {[%clk 0:03:01]}  Bxc3+ {[%clk 0:02:56]} 6. bxc3 {[%clk 0:03:02]}  O-O {[%clk 0:02:56]} 7. cxd5 {[%clk 0:03:02]}  exd5 {[%clk 0:02:53]} 8. e3 {[%clk 0:03:02]}  Re8 {[%clk 0:02:47]} 9. Bd3 {[%clk 0:03:02]}  c5 {[%clk 0:02:40]} 10. Ne2 {[%clk 0:02:54]}  c4 {[%clk 0:02:36]} 11. Bc2 {[%clk 0:02:53]}  Nc6 {[%clk 0:02:36]} 12. O-O {[%clk 0:02:53]}  Bd7 {[%clk 0:02:31]} 13. Ng3 {[%clk 0:02:50]}  Qc7 {[%clk 0:02:27]} 14. e4 {[%clk 0:02:49]}  dxe4 {[%clk 0:02:22]} 15. fxe4 {[%clk 0:02:50]}  Bg4 {[%clk 0:02:22]} 16. Qe1 {[%clk 0:02:43]}  h5 {[%clk 0:02:21]} 17. e5 {[%clk 0:02:22]}  Rad8 {[%clk 0:02:06]} 18. h3 {[%clk 0:02:17]}  h4 {[%clk 0:01:29]} 19. Ne4 {[%clk 0:02:13]}  Nxe4 {[%clk 0:01:13]} 20. Qxe4 {[%clk 0:02:14]}  Be6 {[%clk 0:01:08]} 21. Qh7+ {[%clk 0:02:09]}  Kf8 {[%clk 0:01:08]} 22. Bg5 {[%clk 0:02:05]}  f6 {[%clk 0:01:00]} 23. Rxf6+ {[%clk 0:02:04]}  Bf7 {[%clk 0:00:56]} 24. Qh8+ {[%clk 0:01:52]}  Ke7 {[%clk 0:00:44]} 25. Qxg7 {[%clk 0:01:51]}  Kd7 {[%clk 0:00:39]} 26. Bf5+ {[%clk 0:01:45]} 1-0


[Site "https://www.chess.com"]

[Event "Titled Tuesday Blitz April 12 Early 2022"]
[White "De Arruda, Leandro Formes"]
[Black "Gatterer, Florian"]
[WhiteFideId "22722009"]
[BlackFideId "811688"]
[WhiteElo "1852"]
[BlackElo "2218"]
[Result "1/2-1/2"]
[Round "06"]
[TimeControl "180+1"]
[Date "2022.04.13"]
[WhiteClock "0:00:07"]
[BlackClock "0:00:03"]

1. d4 {[%clk 0:03:00]}  Nf6 {[%clk 0:02:57]} 2. Nf3 {[%clk 0:03:00]}  d5 {[%clk 0:02:55]} 3. e3 {[%clk 0:02:59]}  c6 {[%clk 0:02:51]} 4. Nbd2 {[%clk 0:02:57]}  Bf5 {[%clk 0:02:48]} 5. Be2 {[%clk 0:02:57]}  e6 {[%clk 0:02:47]} 6. O-O {[%clk 0:02:58]}  h6 {[%clk 0:02:48]} 7. b3 {[%clk 0:02:58]}  Nbd7 {[%clk 0:02:48]} 8. Bb2 {[%clk 0:02:58]}  a5 {[%clk 0:02:49]} 9. a4 {[%clk 0:02:58]}  Ne4 {[%clk 0:02:47]} 10. Nxe4 {[%clk 0:02:54]}  Bxe4 {[%clk 0:02:46]} 11. Nd2 {[%clk 0:02:55]}  Bh7 {[%clk 0:02:43]} 12. c4 {[%clk 0:02:43]}  Bd6 {[%clk 0:02:41]} 13. f4 {[%clk 0:02:40]}  O-O {[%clk 0:02:39]} 14. c5 {[%clk 0:02:37]}  Bc7 {[%clk 0:02:35]} 15. Nf3 {[%clk 0:02:36]}  f6 {[%clk 0:02:35]} 16. Nh4 {[%clk 0:02:30]}  Be4 {[%clk 0:02:31]} 17. Bd3 {[%clk 0:02:24]}  Bxd3 {[%clk 0:02:25]} 18. Qxd3 {[%clk 0:02:24]}  f5 {[%clk 0:02:24]} 19. Ng6 {[%clk 0:02:23]}  Re8 {[%clk 0:02:18]} 20. Rf3 {[%clk 0:02:18]}  Nf6 {[%clk 0:02:17]} 21. Rh3 {[%clk 0:02:09]}  Kh7 {[%clk 0:02:01]} 22. Nh4 {[%clk 0:02:04]}  Ne4 {[%clk 0:01:58]} 23. Nf3 {[%clk 0:02:03]}  Kg8 {[%clk 0:01:52]} 24. Bc3 {[%clk 0:01:56]}  Kf7 {[%clk 0:01:47]} 25. Be1 {[%clk 0:01:56]}  Qd7 {[%clk 0:01:41]} 26. Bh4 {[%clk 0:01:55]}  Rh8 {[%clk 0:01:39]} 27. Nd2 {[%clk 0:01:53]}  Nxd2 {[%clk 0:01:27]} 28. Qxd2 {[%clk 0:01:54]}  g5 {[%clk 0:01:20]} 29. Bg3 {[%clk 0:01:45]}  g4 {[%clk 0:01:17]} 30. Rh5 {[%clk 0:01:33]}  Kg6 {[%clk 0:01:16]} 31. Rh4 {[%clk 0:01:28]}  Bd8 {[%clk 0:01:07]} 32. Rf1 {[%clk 0:01:25]}  Bxh4 {[%clk 0:01:05]} 33. Bxh4 {[%clk 0:01:25]}  Kh7 {[%clk 0:01:02]} 34. Bf6 {[%clk 0:01:22]}  Rhg8 {[%clk 0:01:00]} 35. Qf2 {[%clk 0:01:22]}  Qf7 {[%clk 0:00:57]} 36. Qh4 {[%clk 0:01:21]}  Rae8 {[%clk 0:00:45]} 37. Be5 {[%clk 0:01:19]}  Qe7 {[%clk 0:00:42]} 38. Bf6 {[%clk 0:01:17]}  Qf7 {[%clk 0:00:41]} 39. Be5 {[%clk 0:01:18]}  Rg6 {[%clk 0:00:41]} 40. Rb1 {[%clk 0:01:16]}  g3 {[%clk 0:00:36]} 41. hxg3 {[%clk 0:01:10]}  Reg8 {[%clk 0:00:36]} 42. Kf2 {[%clk 0:01:04]}  Rxg3 {[%clk 0:00:35]} 43. Qxg3 {[%clk 0:01:05]}  Rxg3 {[%clk 0:00:35]} 44. Kxg3 {[%clk 0:01:06]}  Qh5 {[%clk 0:00:23]} 45. Kf2 {[%clk 0:01:00]}  Qh4+ {[%clk 0:00:23]} 46. Kf3 {[%clk 0:00:56]}  Qg4+ {[%clk 0:00:20]} 47. Kf2 {[%clk 0:00:56]}  Kg6 {[%clk 0:00:20]} 48. Rh1 {[%clk 0:00:42]}  Kh7 {[%clk 0:00:19]} 49. Rb1 {[%clk 0:00:41]}  h5 {[%clk 0:00:17]} 50. Bf6 {[%clk 0:00:36]}  Qg6 {[%clk 0:00:15]} 51. Bg5 {[%clk 0:00:34]}  Qf7 {[%clk 0:00:11]} 52. b4 {[%clk 0:00:32]}  axb4 {[%clk 0:00:10]} 53. Rxb4 {[%clk 0:00:33]}  Kg6 {[%clk 0:00:10]} 54. Rb6 {[%clk 0:00:31]}  h4 {[%clk 0:00:10]} 55. Bxh4 {[%clk 0:00:28]}  Kh5 {[%clk 0:00:10]} 56. Bg5 {[%clk 0:00:18]}  Kg4 {[%clk 0:00:09]} 57. Rb1 {[%clk 0:00:14]}  Qh7 {[%clk 0:00:09]} 58. Rg1 {[%clk 0:00:10]}  Qh2 {[%clk 0:00:07]} 59. Bf6 {[%clk 0:00:09]}  Qh7 {[%clk 0:00:06]} 60. Bg5 {[%clk 0:00:09]}  Qh8 {[%clk 0:00:05]} 61. Rb1 {[%clk 0:00:06]}  Qh2 {[%clk 0:00:03]} 62. Rg1 {[%clk 0:00:06]}  Qg3+ {[%clk 0:00:03]} 63. Ke2 {[%clk 0:00:06]}  Qh2 {[%clk 0:00:03]} 64. Kf2 {[%clk 0:00:06]}  Qg3+ {[%clk 0:00:03]} 65. Ke2 {[%clk 0:00:06]}  Qh2 {[%clk 0:00:03]} 66. Kf2 {[%clk 0:00:07]} 1/2-1/2


[Site "https://www.chess.com"]

[Event "Titled Tuesday Blitz April 12 Early 2022"]
[White "Demin, Vladimir"]
[Black "Barria Zuniga, Daniel"]
[WhiteFideId "4167457"]
[BlackFideId "3400816"]
[WhiteElo "2391"]
[BlackElo "2414"]
[Result "1-0"]
[Round "06"]
[TimeControl "180+1"]
[Date "2022.04.13"]
[WhiteClock "0:00:49"]
[BlackClock "0:00:01"]

1. d4 {[%clk 0:03:00]}  Nf6 {[%clk 0:02:48]} 2. g4 {[%clk 0:02:53]}  Nxg4 {[%clk 0:02:44]} 3. e4 {[%clk 0:02:51]}  d5 {[%clk 0:02:41]} 4. Be2 {[%clk 0:02:50]}  Nf6 {[%clk 0:02:33]} 5. e5 {[%clk 0:02:50]}  Ng8 {[%clk 0:02:29]} 6. Nf3 {[%clk 0:02:49]}  Bg4 {[%clk 0:02:20]} 7. Rg1 {[%clk 0:02:46]}  Bxf3 {[%clk 0:02:18]} 8. Bxf3 {[%clk 0:02:42]}  e6 {[%clk 0:02:19]} 9. c4 {[%clk 0:02:39]}  c6 {[%clk 0:02:18]} 10. Nc3 {[%clk 0:02:37]}  Nd7 {[%clk 0:02:15]} 11. Bg5 {[%clk 0:02:35]}  Qb6 {[%clk 0:02:00]} 12. Qd2 {[%clk 0:02:33]}  dxc4 {[%clk 0:01:54]} 13. O-O-O {[%clk 0:02:29]}  Ne7 {[%clk 0:01:34]} 14. Bxe7 {[%clk 0:02:26]}  Bxe7 {[%clk 0:01:34]} 15. Rxg7 {[%clk 0:02:26]}  O-O-O {[%clk 0:01:23]} 16. Rxf7 {[%clk 0:02:21]}  Nxe5 {[%clk 0:01:09]} 17. Rxe7 {[%clk 0:02:18]}  Nxf3 {[%clk 0:01:09]} 18. Qe3 {[%clk 0:02:18]}  Nxd4 {[%clk 0:01:08]} 19. Na4 {[%clk 0:02:10]}  Qb4 {[%clk 0:01:06]} 20. Rf7 {[%clk 0:01:45]}  Qxa4 {[%clk 0:01:01]} 21. Rxd4 {[%clk 0:01:43]}  Rxd4 {[%clk 0:00:52]} 22. Qxd4 {[%clk 0:01:42]}  Rd8 {[%clk 0:00:52]} 23. Qg4 {[%clk 0:01:41]}  Qxa2 {[%clk 0:00:45]} 24. Qxe6+ {[%clk 0:01:40]}  Kb8 {[%clk 0:00:43]} 25. Qe5+ {[%clk 0:01:28]}  Ka8 {[%clk 0:00:40]} 26. Qd6 {[%clk 0:01:28]}  Qa1+ {[%clk 0:00:25]} 27. Kc2 {[%clk 0:01:27]}  Qa4+ {[%clk 0:00:24]} 28. Kc1 {[%clk 0:01:22]}  Qa5 {[%clk 0:00:22]} 29. Rf8 {[%clk 0:01:12]}  Qe1+ {[%clk 0:00:11]} 30. Kc2 {[%clk 0:01:12]}  Qe4+ {[%clk 0:00:08]} 31. Kc3 {[%clk 0:01:04]}  Qe1+ {[%clk 0:00:08]} 32. Kxc4 {[%clk 0:00:55]}  b5+ {[%clk 0:00:07]} 33. Kb3 {[%clk 0:00:52]}  Rxf8 {[%clk 0:00:04]} 34. Qxc6+ {[%clk 0:00:51]}  Kb8 {[%clk 0:00:03]} 35. Qd6+ {[%clk 0:00:51]}  Kb7 {[%clk 0:00:03]} 36. Qxf8 {[%clk 0:00:51]}  Qe6+ {[%clk 0:00:01]} 37. Ka3 {[%clk 0:00:49]} 1-0


[Site "https://www.chess.com"]

[Event "Titled Tuesday Blitz April 12 Early 2022"]
[White "Dreev, Aleksey"]
[Black "Le, Tuan Minh"]
[WhiteFideId "4100107"]
[BlackFideId "12401153"]
[WhiteElo "2625"]
[BlackElo "2450"]
[Result "0-1"]
[Round "06"]
[TimeControl "180+1"]
[Date "2022.04.12"]
[WhiteClock "0:00:09"]
[BlackClock "0:00:05"]

1. d4 {[%clk 0:03:00]}  d5 {[%clk 0:03:00]} 2. c4 {[%clk 0:03:00]}  c6 {[%clk 0:03:00]} 3. cxd5 {[%clk 0:03:00]}  cxd5 {[%clk 0:03:00]} 4. Bg5 {[%clk 0:03:01]}  h6 {[%clk 0:03:00]} 5. Bh4 {[%clk 0:02:59]}  Qb6 {[%clk 0:03:00]} 6. Qd2 {[%clk 0:02:54]}  e6 {[%clk 0:02:51]} 7. Nc3 {[%clk 0:02:52]}  Ne7 {[%clk 0:02:51]} 8. f3 {[%clk 0:02:47]}  Nf5 {[%clk 0:01:53]} 9. Bf2 {[%clk 0:02:44]}  Bb4 {[%clk 0:01:53]} 10. e3 {[%clk 0:02:38]}  Bd7 {[%clk 0:01:51]} 11. Bd3 {[%clk 0:02:38]}  Nd6 {[%clk 0:01:51]} 12. Nge2 {[%clk 0:02:37]}  Bb5 {[%clk 0:01:49]} 13. O-O {[%clk 0:02:27]}  Bxd3 {[%clk 0:01:48]} 14. Qxd3 {[%clk 0:02:27]}  Qa6 {[%clk 0:01:49]} 15. Qxa6 {[%clk 0:02:21]}  Nxa6 {[%clk 0:01:49]} 16. e4 {[%clk 0:02:22]}  dxe4 {[%clk 0:01:50]} 17. fxe4 {[%clk 0:02:22]}  O-O {[%clk 0:01:40]} 18. Rad1 {[%clk 0:02:15]}  Rfd8 {[%clk 0:01:34]} 19. a3 {[%clk 0:02:10]}  Bxc3 {[%clk 0:01:32]} 20. Nxc3 {[%clk 0:02:09]}  Nc4 {[%clk 0:01:33]} 21. d5 {[%clk 0:01:56]}  Rac8 {[%clk 0:01:25]} 22. dxe6 {[%clk 0:01:49]}  fxe6 {[%clk 0:01:24]} 23. Rxd8+ {[%clk 0:01:36]}  Rxd8 {[%clk 0:01:24]} 24. Bxa7 {[%clk 0:01:34]}  Nxb2 {[%clk 0:01:09]} 25. Rb1 {[%clk 0:01:34]}  Rd2 {[%clk 0:01:02]} 26. e5 {[%clk 0:01:16]}  Rc2 {[%clk 0:00:43]} 27. Ne4 {[%clk 0:01:14]}  Nd3 {[%clk 0:00:41]} 28. h3 {[%clk 0:01:06]}  Nc7 {[%clk 0:00:32]} 29. Rxb7 {[%clk 0:01:01]}  Nd5 {[%clk 0:00:33]} 30. Nf2 {[%clk 0:00:48]}  N3f4 {[%clk 0:00:30]} 31. g3 {[%clk 0:00:43]}  Ne2+ {[%clk 0:00:26]} 32. Kg2 {[%clk 0:00:44]}  Ra2 {[%clk 0:00:24]} 33. Bc5 {[%clk 0:00:43]}  Nec3 {[%clk 0:00:24]} 34. Kf3 {[%clk 0:00:40]}  Na4 {[%clk 0:00:13]} 35. Bd6 {[%clk 0:00:40]}  Nb2 {[%clk 0:00:13]} 36. Rb8+ {[%clk 0:00:33]}  Kh7 {[%clk 0:00:13]} 37. Rc8 {[%clk 0:00:34]}  Na4 {[%clk 0:00:09]} 38. Rc4 {[%clk 0:00:32]}  Nab6 {[%clk 0:00:08]} 39. Rc6 {[%clk 0:00:32]}  Rb2 {[%clk 0:00:08]} 40. Nd3 {[%clk 0:00:27]}  Rb3 {[%clk 0:00:08]} 41. Ke2 {[%clk 0:00:27]}  Na4 {[%clk 0:00:07]} 42. Kd2 {[%clk 0:00:23]}  Nac3 {[%clk 0:00:03]} 43. Nc5 {[%clk 0:00:19]}  Rxa3 {[%clk 0:00:02]} 44. Nxe6 {[%clk 0:00:19]}  Ne4+ {[%clk 0:00:03]} 45. Kc2 {[%clk 0:00:20]}  Rxg3 {[%clk 0:00:02]} 46. Bf8 {[%clk 0:00:16]}  Rf3 {[%clk 0:00:02]} 47. Bxg7 {[%clk 0:00:16]}  Nb4+ {[%clk 0:00:02]} 48. Kb2 {[%clk 0:00:15]}  Nxc6 {[%clk 0:00:03]} 49. h4 {[%clk 0:00:11]}  Rf2+ {[%clk 0:00:04]} 50. Kb3 {[%clk 0:00:11]}  Nd4+ {[%clk 0:00:04]} 51. Nxd4 {[%clk 0:00:09]}  Kxg7 {[%clk 0:00:05]} 52. Kc4 {[%clk 0:00:10]}  Kf7 {[%clk 0:00:05]} 53. Kd5 {[%clk 0:00:10]}  Nc3+ {[%clk 0:00:05]} 54. Kd6 {[%clk 0:00:11]}  Rd2 {[%clk 0:00:05]} 55. e6+ {[%clk 0:00:11]}  Kf6 {[%clk 0:00:05]} 56. Kc5 {[%clk 0:00:10]}  Ne4+ {[%clk 0:00:06]} 57. Kd5 {[%clk 0:00:10]}  Ng3 {[%clk 0:00:05]} 58. Kc5 {[%clk 0:00:09]}  Nf5 {[%clk 0:00:05]} 0-1


[Site "https://www.chess.com"]

[Event "Titled Tuesday Blitz April 12 Early 2022"]
[White "Efremova, Yulia"]
[Black "Butti, Enrique"]
[WhiteFideId "14113953"]
[BlackFideId "3700470"]
[WhiteElo "2107"]
[BlackElo "2080"]
[Result "0-1"]
[Round "06"]
[TimeControl "180+1"]
[Date "2022.04.13"]
[WhiteClock "0:00:27"]
[BlackClock "0:00:55"]

1. d4 {[%clk 0:02:58]}  Nf6 {[%clk 0:02:58]} 2. Nf3 {[%clk 0:02:55]}  c5 {[%clk 0:02:56]} 3. c3 {[%clk 0:02:54]}  cxd4 {[%clk 0:02:55]} 4. cxd4 {[%clk 0:02:53]}  d5 {[%clk 0:02:55]} 5. Bf4 {[%clk 0:02:51]}  Nc6 {[%clk 0:02:54]} 6. e3 {[%clk 0:02:50]}  Ne4 {[%clk 0:02:50]} 7. Be2 {[%clk 0:02:43]}  e6 {[%clk 0:02:47]} 8. O-O {[%clk 0:02:40]}  Bd6 {[%clk 0:02:45]} 9. Bxd6 {[%clk 0:02:39]}  Qxd6 {[%clk 0:02:44]} 10. Nc3 {[%clk 0:02:39]}  Nxc3 {[%clk 0:02:43]} 11. bxc3 {[%clk 0:02:39]}  O-O {[%clk 0:02:42]} 12. c4 {[%clk 0:02:38]}  dxc4 {[%clk 0:02:41]} 13. Bxc4 {[%clk 0:02:37]}  Na5 {[%clk 0:02:40]} 14. Bd3 {[%clk 0:02:35]}  b6 {[%clk 0:02:38]} 15. Bxh7+ {[%clk 0:02:28]}  Kxh7 {[%clk 0:02:33]} 16. Ng5+ {[%clk 0:02:27]}  Kg6 {[%clk 0:02:29]} 17. Qg4 {[%clk 0:02:09]}  f5 {[%clk 0:02:27]} 18. Qh4 {[%clk 0:01:54]}  Bb7 {[%clk 0:02:20]} 19. f4 {[%clk 0:01:53]}  Rh8 {[%clk 0:02:15]} 20. Qg3 {[%clk 0:01:54]}  Kf6 {[%clk 0:02:14]} 21. Nh3 {[%clk 0:01:37]}  Qd5 {[%clk 0:02:05]} 22. Nf2 {[%clk 0:01:31]}  Rh6 {[%clk 0:01:58]} 23. Qg5+ {[%clk 0:01:16]}  Kf7 {[%clk 0:01:57]} 24. Nd3 {[%clk 0:01:14]}  Nc4 {[%clk 0:01:47]} 25. Rf2 {[%clk 0:00:59]}  Rg6 {[%clk 0:01:38]} 26. Qh5 {[%clk 0:00:59]}  Rh8 {[%clk 0:01:27]} 27. Qxh8 {[%clk 0:00:51]}  Rxg2+ {[%clk 0:01:26]} 28. Kf1 {[%clk 0:00:50]}  Nxe3+ {[%clk 0:01:05]} 29. Ke2 {[%clk 0:00:47]}  Qf3+ {[%clk 0:01:04]} 30. Kd2 {[%clk 0:00:37]}  Rxf2+ {[%clk 0:01:02]} 31. Nxf2 {[%clk 0:00:37]}  Qxf2+ {[%clk 0:01:00]} 32. Kc3 {[%clk 0:00:29]}  Qc2+ {[%clk 0:00:58]} 33. Kb4 {[%clk 0:00:29]}  a5+ {[%clk 0:00:57]} 34. Ka3 {[%clk 0:00:27]}  Qc3+ {[%clk 0:00:55]} 0-1


[Site "https://www.chess.com"]